bitfinex/quotes_BTCUSD_20250608
["timestamp","ask_amount","ask_price","bid_price","bid_amount"]
[1749421925588,0.33549837,106050.0,106040.0,0.011]
[1749421925714,0.33549839,106050.0,106040.0,0.011]
[1749421926124,0.43189787,106050.0,106040.0,0.011]
[1749421926342,0.50102835,106050.0,106040.0,0.011]
[1749421926757,0.49444531,106050.0,106040.0,0.011]
[1749421926959,0.46922828,106050.0,106040.0,0.011]
[1749421927245,0.46922824,106050.0,106040.0,0.011]
[1749421927541,0.46264531,106050.0,106040.0,0.011]
[1749421928241,0.4692283,106050.0,106040.0,0.011]
[1749421928807,1.29217273,106050.0,106040.0,0.011]
[1749421929172,1.26049273,106050.0,106040.0,0.011]
[1749421929382,1.26049453,106050.0,106040.0,0.011]
[1749421929587,1.26049451,106050.0,106040.0,0.011]
[1749421929798,1.26049453,106050.0,106040.0,0.011]
[1749421930216,1.26048644,106050.0,106040.0,0.011]
[1749421931089,0.83728644,106050.0,106040.0,0.0425]
[1749421931299,1.20416893,106050.0,106040.0,0.0425]
[1749421931501,1.20416895,106050.0,106040.0,0.0425]
[1749421931701,1.2322463,106050.0,106040.0,0.0425]
[1749421932254,1.23224628,106050.0,106040.0,0.0425]
[1749421932666,1.22566952,106050.0,106040.0,0.0425]
[1749421932881,1.2322443,106050.0,106040.0,0.0425]
[1749421933085,1.23224432,106050.0,106040.0,0.0425]
[1749421933913,1.22566952,106050.0,106040.0,0.0425]
[1749421934347,1.23224518,106050.0,106040.0,0.0425]
[1749421934555,1.23224515,106050.0,106040.0,0.0425]
[1749421934753,1.22566952,106050.0,106040.0,0.0425]
[1749421934913,1.23224516,106050.0,106040.0,0.0425]
[1749421936298,1.23224463,106050.0,106040.0,0.0425]
[1749421936537,1.22566952,106050.0,106040.0,0.0425]
[1749421936741,1.23224465,106050.0,106040.0,0.0425]
[1749421937455,1.23224641,106050.0,106040.0,0.0425]
[1749421937883,1.23224643,106050.0,106040.0,0.0425]
[1749421938354,1.22566952,106050.0,106040.0,0.0271]
[1749421938510,1.23224641,106050.0,106040.0,0.0271]
[1749421939126,1.23224641,106050.0,106040.0,0.0425]
[1749421939656,1.23224644,106050.0,106040.0,0.0425]
[1749421939859,1.22566952,106050.0,106040.0,0.0425]
[1749421940158,1.23224644,106050.0,106040.0,0.0425]
[1749421940588,1.23224758,106050.0,106040.0,0.0425]
[1749421941018,1.22566952,106050.0,106040.0,0.0425]
[1749421941222,0.91336758,106050.0,106040.0,0.0425]
[1749421941451,0.91336772,106050.0,106040.0,0.0425]
[1749421941690,0.91336773,106050.0,106040.0,0.0425]
[1749421941887,0.90678952,106050.0,106040.0,0.0425]
[1749421942101,0.91336776,106050.0,106040.0,0.0425]
[1749421942890,0.91336863,106050.0,106040.0,0.0425]
[1749421943496,0.91336864,106050.0,106040.0,0.0425]
[1749421943716,0.71296916,106050.0,106040.0,0.0425]
[1749421943934,0.03839589,106050.0,106040.0,0.69974098]
[1749421944175,0.03181615,106060.0,106050.0,0.24837774]
[1749421944384,0.05067295,106060.0,106050.0,0.68872069]
[1749421944585,0.02828515,106060.0,106050.0,0.70757856]
[1749421944786,0.02828444,106060.0,106050.0,1.02053856]
[1749421944951,0.03771288,106060.0,106050.0,1.02053856]
[1749421945142,0.04124264,106070.0,106060.0,0.24935729]
[1749421945351,0.21683676,106070.0,106060.0,0.68027207]
[1749421945549,0.21683676,106070.0,106060.0,0.68970016]
[1749421945730,0.21683676,106070.0,106060.0,0.71781903]
[1749421945937,0.02828204,106070.0,106060.0,0.72724703]
[1749421946158,0.03770977,106070.0,106060.0,0.72724703]
[1749421946360,0.06262133,106070.0,106060.0,0.72724703]
[1749421946695,0.03770977,106070.0,106060.0,0.71781903]
[1749421947531,0.22626449,106070.0,106060.0,0.70839094]
[1749421947741,0.21683738,106070.0,106060.0,0.70839094]
[1749421949099,0.21683738,106070.0,106060.0,0.70839112]
[1749421950526,0.20741,106070.0,106060.0,0.70839112]
[1749421951347,0.22819753,106070.0,106060.0,0.06061887]
[1749421951767,0.18855472,106070.0,106060.0,0.06061887]
[1749421953346,0.19800094,106060.0,106050.0,0.3286]
[1749421953554,0.19800094,106060.0,106050.0,0.64056]
[1749421953985,0.19800094,106060.0,106050.0,0.6406]
[1749421954821,0.19800094,106060.0,106050.0,0.6416]
[1749421955073,0.23665651,106060.0,106050.0,0.3296]
[1749421955288,0.23665651,106060.0,106050.0,0.3163]
[1749421955492,0.23665651,106060.0,106050.0,0.62862]
[1749421955706,0.23665651,106060.0,106050.0,0.64492]
[1749421955910,0.23665651,106060.0,106050.0,0.34662]
[1749421958457,0.26765651,106060.0,106050.0,0.003]
[1749421959077,0.25235651,106060.0,106050.0,0.003]
[1749421959256,0.23665651,106060.0,106050.0,0.003]
[1749421963943,0.23665651,106060.0,106050.0,0.0187]
[1749421967871,0.23665651,106060.0,106050.0,0.003]
[1749421969277,0.23665651,106060.0,106050.0,0.0187]
[1749421970646,0.23665651,106060.0,106050.0,0.035]
[1749421972680,0.23665651,106060.0,106050.0,0.0187]
[1749421973605,0.25904817,106060.0,106050.0,0.0187]
[1749421978953,0.25904817,106060.0,106050.0,0.0346]
[1749421979155,0.28746154,106060.0,106050.0,0.0346]
[1749421979994,0.28746154,106060.0,106050.0,0.0187]
[1749421981477,0.29404865,106060.0,106050.0,0.0187]
[1749421981686,0.29404865,106060.0,106050.0,0.0346]
[1749421981901,0.28746154,106060.0,106050.0,0.0346]
[1749421982286,0.29404866,106060.0,106050.0,0.0346]
[1749421982690,0.29404867,106060.0,106050.0,0.0346]
[1749421982894,0.29404868,106060.0,106050.0,0.0346]
[1749421983860,0.29404867,106060.0,106050.0,0.0346]
[1749421984036,0.28746154,106060.0,106050.0,0.0346]
[1749421984435,0.31545112,106060.0,106050.0,0.0346]
[1749421984688,0.32203825,106060.0,106050.0,0.0346]
[1749421984845,0.31545112,106060.0,106050.0,0.0346]
[1749421985055,0.32203825,106060.0,106050.0,0.0346]
[1749421985252,0.31545112,106060.0,106050.0,0.0346]
[1749421985454,0.32203824,106060.0,106050.0,0.0187]
[1749421985754,0.31545112,106060.0,106050.0,0.0187]
[1749421985960,0.32203824,106060.0,106050.0,0.0187]
[1749421986789,0.31545112,106060.0,106050.0,0.0187]
[1749421987394,0.32203824,106060.0,106050.0,0.0187]
[1749421988021,0.31545112,106060.0,106050.0,0.0187]
[1749421988243,0.32203897,106060.0,106050.0,0.0187]
[1749421988439,0.32203895,106060.0,106050.0,0.0187]
[1749421989052,0.32203897,106060.0,106050.0,0.0187]
[1749421989280,0.32203894,106060.0,106050.0,0.0187]
[1749421989840,0.32203897,106060.0,106050.0,0.0187]
[1749421990238,0.32203893,106060.0,106050.0,0.0187]
[1749421990433,0.31545112,106060.0,106050.0,0.0187]
[1749421990696,0.31545112,106060.0,106050.0,0.0347]
[1749421990847,0.32203893,106060.0,106050.0,0.0347]
[1749421991063,0.31545112,106060.0,106050.0,0.0347]
[1749421991266,0.32203891,106060.0,106050.0,0.0347]
[1749421991822,0.31545112,106060.0,106050.0,0.0347]
[1749421992027,0.32203901,106060.0,106050.0,0.0347]
[1749421992233,0.32203899,106060.0,106050.0,0.0347]
[1749421992458,0.31545112,106060.0,106050.0,0.0347]
[1749421992872,0.32203895,106060.0,106050.0,0.0347]
[1749421994314,0.32203849,106060.0,106050.0,0.0347]
[1749421994514,0.32203852,106060.0,106050.0,0.0347]
[1749421994729,0.31545112,106060.0,106050.0,0.0347]
[1749421994916,0.32203856,106060.0,106050.0,0.0347]
[1749421995316,0.32203857,106060.0,106050.0,0.0347]
[1749421995591,0.31545112,106060.0,106050.0,0.0347]
[1749421995763,0.32203855,106060.0,106050.0,0.0347]
[1749421995960,0.31545112,106060.0,106050.0,0.0347]
[1749421996317,0.31545112,106060.0,106050.0,0.003]
[1749421996520,0.32203857,106060.0,106050.0,0.003]
[1749421997066,0.32203859,106060.0,106050.0,0.003]
[1749421997668,0.32203859,106060.0,106050.0,0.0189]
[1749421998110,0.3220386,106060.0,106050.0,0.0189]
[1749421998939,0.05696872,106060.0,106050.0,0.69252848]
[1749421999297,0.02239166,106060.0,106050.0,1.13277922]
[1749421999522,0.02239166,106070.0,106060.0,0.24925729]
[1749421999717,0.02239166,106070.0,106060.0,1.12975877]
[1749421999923,0.03181859,106070.0,106060.0,1.43563877]
[1749422000083,0.02239166,106070.0,106060.0,1.43563877]
[1749422000288,0.05115219,106080.0,106070.0,0.24933711]
[1749422000552,0.02287282,106080.0,106070.0,1.16410301]
[1749422000724,0.00048116,106080.0,106070.0,1.25020603]
[1749422001280,0.00048116,106080.0,106070.0,0.9561846]
[1749422001696,0.00048116,106080.0,106070.0,0.96548334]
[1749422002109,0.00048116,106080.0,106070.0,0.96848334]
[1749422002327,0.00248116,106080.0,106070.0,1.06488282]
[1749422002742,0.00248116,106080.0,106070.0,1.06788282]
[1749422008038,0.00248116,106080.0,106070.0,1.37256282]
[1749422009064,0.00248116,106080.0,106070.0,1.40111572]
[1749422009266,0.00248116,106080.0,106070.0,1.69941572]
[1749422013458,0.00248116,106080.0,106070.0,1.70185624]
[1749422014875,0.01190729,106080.0,106070.0,0.97148334]
[1749422015113,0.0213336,106080.0,106070.0,0.77906455]
[1749422015281,0.01190729,106080.0,106070.0,1.3655446]
[1749422015446,0.0119072,106080.0,106070.0,1.3655446]
[1749422015816,0.03075964,106080.0,106070.0,1.15620427]
[1749422016174,0.0496127,106080.0,106070.0,0.85124427]
[1749422016376,0.0496127,106080.0,106070.0,0.53714422]
[1749422016580,0.04018604,106080.0,106070.0,0.53714422]
[1749422016779,0.04961253,106080.0,106070.0,0.53714422]
[1749422016984,0.04961253,106080.0,106070.0,0.55294422]
[1749422017407,0.04961315,106080.0,106070.0,0.55294422]
[1749422017767,0.03076009,106080.0,106070.0,0.55294422]
[1749422018898,0.03076009,106080.0,106070.0,1.13942427]
[1749422019542,0.04018675,106080.0,106070.0,1.13942427]
[1749422019750,0.04018675,106080.0,106070.0,1.12362427]
[1749422020895,0.03076009,106080.0,106070.0,1.13942427]
[1749422021706,0.04018675,106080.0,106070.0,1.13942427]
[1749422021965,0.23815045,106080.0,106070.0,1.12999716]
[1749422022128,0.0496135,106080.0,106070.0,1.12362427]
[1749422022441,0.0496135,106080.0,106070.0,0.53714422]
[1749422023012,0.23815045,106080.0,106070.0,0.22283711]
[1749422023264,0.27341143,106080.0,106070.0,0.51737]
[1749422023496,0.27341143,106080.0,106070.0,0.22283746]
[1749422023725,0.24959801,106080.0,106070.0,0.52683746]
[1749422024455,0.24959801,106080.0,106070.0,0.53626484]
[1749422025917,0.24959801,106080.0,106070.0,0.52683746]
[1749422026555,0.24959801,106080.0,106070.0,0.53626484]
[1749422027025,0.23439801,106080.0,106070.0,0.54569213]
[1749422027241,0.21929801,106080.0,106070.0,0.5456916]
[1749422027661,0.03076106,106080.0,106070.0,0.54569116]
[1749422027873,0.02133431,106080.0,106070.0,0.56179116]
[1749422028077,0.02133431,106080.0,106070.0,1.16457121]
[1749422028537,0.03076115,106080.0,106070.0,1.16457121]
[1749422028949,0.02133431,106080.0,106070.0,1.16457121]
[1749422031166,0.02133431,106080.0,106070.0,0.57809116]
[1749422031370,0.2457017,106080.0,106070.0,0.21340956]
[1749422031602,0.2457017,106080.0,106070.0,0.51732956]
[1749422031939,0.06659097,106080.0,106070.0,0.52675667]
[1749422032092,0.05716422,106080.0,106070.0,0.52675667]
[1749422032511,0.06659097,106080.0,106070.0,0.52675667]
[1749422032662,0.07601781,106080.0,106070.0,0.52675667]
[1749422032859,0.05716422,106080.0,106070.0,0.52675667]
[1749422033259,0.05716422,106080.0,106070.0,0.54335667]
[1749422033458,0.00248116,106080.0,106070.0,1.14533672]
[1749422033664,0.02133351,106080.0,106070.0,1.14533672]
[1749422034323,0.03075991,106080.0,106070.0,1.14533672]
[1749422035062,0.02133351,106080.0,106070.0,1.14533672]
[1749422035271,0.03075991,106080.0,106070.0,1.14533672]
[1749422036686,0.02133351,106080.0,106070.0,1.14533672]
[1749422036987,0.03075991,106080.0,106070.0,1.14533672]
[1749422037340,0.2453488,106080.0,106070.0,0.006]
[1749422037561,0.36502206,106080.0,106070.0,0.006]
[1749422037760,0.76195772,106080.0,106070.0,0.006]
[1749422037962,0.75538125,106080.0,106070.0,0.006]
[1749422038169,0.76195766,106080.0,106070.0,0.006]
[1749422038843,1.16315766,106080.0,106070.0,0.006]
[1749422039162,1.1631513,106080.0,106070.0,0.006]
[1749422039385,1.15658125,106080.0,106070.0,0.006]
[1749422039781,1.15658125,106080.0,106070.0,0.003]
[1749422039986,1.1631513,106080.0,106070.0,0.003]
[1749422040190,0.02828453,106060.0,106050.0,1.14213477]
[1749422040589,0.02828453,106060.0,106050.0,1.13270606]
[1749422041276,0.03771306,106060.0,106050.0,1.12327726]
[1749422041700,0.24348856,106060.0,106050.0,1.09241966]
[1749422041893,0.23406038,106060.0,106050.0,0.50593961]
[1749422042192,0.23406038,106060.0,106050.0,0.51536885]
[1749422042394,0.23406038,106060.0,106050.0,0.524798]
[1749422042640,0.23406038,106060.0,106050.0,0.528798]
[1749422043528,0.23406038,106060.0,106050.0,0.51936885]
[1749422043853,0.23406038,106060.0,106050.0,0.008]
[1749422043854,0.22463194,106060.0,106050.0,0.008]
[1749422044061,0.25633194,106060.0,106050.0,0.31192]
[1749422044237,0.25633194,106060.0,106050.0,0.32134951]
[1749422044662,0.25633194,106060.0,106050.0,0.01742951]
[1749422044797,0.25633194,106060.0,106050.0,0.008]
[1749422045181,0.25633194,106060.0,106050.0,0.20601979]
[1749422045386,0.24690341,106060.0,106050.0,0.20601979]
[1749422045616,0.24690341,106060.0,106050.0,0.31196]
[1749422045821,0.24690341,106060.0,106050.0,0.008]
[1749422053243,0.23110341,106060.0,106050.0,0.008]
[1749422053428,0.21520341,106060.0,106050.0,0.008]
[1749422053645,0.21520341,106060.0,106050.0,0.20601979]
[1749422053850,0.21520341,106060.0,106050.0,0.21544921]
[1749422054000,0.21520341,106060.0,106050.0,0.22487854]
[1749422054399,0.21520341,106060.0,106050.0,0.24127854]
[1749422054791,0.21520341,106060.0,106050.0,0.23184921]
[1749422055222,0.21520341,106060.0,106050.0,0.26600725]
[1749422055223,0.00942809,106060.0,106050.0,0.26600725]
[1749422055542,0.02828506,106060.0,106050.0,0.8524873]
[1749422056349,0.02828506,106060.0,106050.0,0.26600725]
[1749422056552,0.04714203,106060.0,106050.0,0.25657836]
[1749422056750,0.03771394,106060.0,106050.0,0.26600742]
[1749422056937,0.06479075,106060.0,106050.0,0.27543631]
[1749422057577,0.07421937,106060.0,106050.0,0.27543631]
[1749422061277,0.01885591,106060.0,106050.0,0.86191636]
[1749422061482,0.02828417,106060.0,106050.0,0.86191636]
[1749422061685,0.03771252,106060.0,106050.0,0.86191636]
[1749422062120,0.02828417,106060.0,106050.0,0.27543631]
[1749422062564,0.00942782,106060.0,106050.0,0.27543631]
[1749422062770,0.55683729,106070.0,106060.0,0.23972929]
[1749422062975,0.67561863,106070.0,106060.0,0.23972929]
[1749422063397,0.48706391,106070.0,106060.0,0.23972929]
[1749422063579,0.46468205,106070.0,106060.0,0.24915729]
[1749422064149,0.65323677,106070.0,106060.0,0.25215747]
[1749422064360,0.67561863,106070.0,106060.0,0.25515747]
[1749422064798,0.67561863,106070.0,106060.0,0.23630103]
[1749422065000,0.67561863,106070.0,106060.0,0.24572938]
[1749422065201,0.67277067,106070.0,106060.0,0.24572938]
[1749422065434,0.6727713,106070.0,106060.0,0.24572938]
[1749422065565,0.66619134,106070.0,106060.0,0.24572938]
[1749422065777,0.6727713,106070.0,106060.0,0.24572938]
[1749422065998,0.66619134,106070.0,106060.0,0.24572938]
[1749422066380,0.67277129,106070.0,106060.0,0.23630103]
[1749422066594,0.66334374,106070.0,106060.0,0.21990103]
[1749422067173,0.65676379,106070.0,106060.0,0.24472947]
[1749422067376,0.68474112,106070.0,106060.0,0.24472947]
[1749422067597,0.69132108,106070.0,106060.0,0.24472947]
[1749422067800,0.68474112,106070.0,106060.0,0.22932947]
[1749422068022,0.67531339,106070.0,106060.0,0.0219]
[1749422068199,0.67531339,106070.0,106060.0,0.006]
[1749422068405,0.68189336,106070.0,106060.0,0.006]
[1749422068625,0.68189336,106070.0,106060.0,0.1945725]
[1749422068827,0.68189336,106070.0,106060.0,0.20400112]
[1749422069199,0.68189637,106070.0,106060.0,0.20400112]
[1749422069629,0.68189637,106070.0,106060.0,0.21970112]
[1749422069826,0.67531339,106070.0,106060.0,0.21970112]
[1749422070027,0.68189637,106070.0,106060.0,0.21970112]
[1749422070595,0.68189637,106070.0,106060.0,0.22912965]
[1749422070795,0.68189637,106070.0,106060.0,0.04722862]
[1749422071064,0.67531339,106070.0,106060.0,0.0217]
[1749422071273,0.67531339,106070.0,106060.0,0.006]
[1749422071529,0.71379637,106070.0,106060.0,0.006]
[1749422072345,0.7137973,106070.0,106060.0,0.006]
[1749422072540,0.70721339,106070.0,106060.0,0.006]
[1749422072739,0.7137973,106070.0,106060.0,0.006]
[1749422072943,0.81019677,106070.0,106060.0,0.006]
[1749422073297,0.81019672,106070.0,106060.0,0.006]
[1749422073496,0.8101967,106070.0,106060.0,0.006]
[1749422073940,0.81019701,106070.0,106060.0,0.006]
[1749422074551,0.80361287,106070.0,106060.0,0.006]
[1749422074929,0.81019701,106070.0,106060.0,0.006]
[1749422075343,0.80361287,106070.0,106060.0,0.006]
[1749422075553,0.81019699,106070.0,106060.0,0.006]
[1749422076185,0.80361287,106070.0,106060.0,0.006]
[1749422076415,0.84094335,106070.0,106060.0,0.006]
[1749422076777,0.84752739,106070.0,106060.0,0.006]
[1749422076981,1.15140739,106070.0,106060.0,0.006]
[1749422077344,1.15140748,106070.0,106060.0,0.006]
[1749422077551,1.01767756,106070.0,106060.0,0.006]
[1749422078004,1.01767758,106070.0,106060.0,0.006]
[1749422078408,1.01109339,106070.0,106060.0,0.006]
[1749422078612,1.01767758,106070.0,106060.0,0.006]
[1749422078848,0.68189758,106070.0,106060.0,0.006]
[1749422079038,0.68189758,106070.0,106060.0,0.0372]
[1749422079246,0.68189758,106070.0,106060.0,0.04662862]
[1749422079400,0.68189795,106070.0,106060.0,0.04662862]
[1749422079602,0.77829743,106070.0,106060.0,0.04662862]
[1749422079824,0.7503201,106070.0,106060.0,0.04662862]
[1749422079997,0.75032026,106070.0,106060.0,0.04662862]
[1749422080207,0.77829755,106070.0,106060.0,0.04662862]
[1749422080415,0.77829756,106070.0,106060.0,0.04662862]
[1749422080835,0.77829756,106070.0,106060.0,0.24462965]
[1749422080836,0.68189808,106070.0,106060.0,0.24462965]
[1749422081182,0.58549991,106070.0,106060.0,0.25405809]
[1749422081592,0.58549991,106070.0,106060.0,0.24462965]
[1749422082732,0.41580021,106070.0,106060.0,0.27291409]
[1749422082942,0.38782219,106070.0,106060.0,0.27291409]
[1749422083141,0.38123688,106070.0,106060.0,0.27291409]
[1749422083344,0.46270491,106070.0,106060.0,0.27291409]
[1749422084273,0.45611959,106070.0,106060.0,0.27291409]
[1749422084975,0.46270492,106070.0,106060.0,0.27291409]
[1749422085176,0.46554732,106070.0,106060.0,0.27291409]
[1749422085737,0.47213265,106070.0,106060.0,0.27291409]
[1749422086098,0.65410204,106070.0,106060.0,0.26348609]
[1749422086308,0.66068729,106070.0,106060.0,0.26348609]
[1749422086556,0.36238186,106070.0,106060.0,1.15380614]
[1749422086915,0.02238186,106070.0,106060.0,1.16323414]
[1749422087039,0.43513181,106080.0,106070.0,0.24833685]
[1749422087391,0.40056879,106080.0,106070.0,0.24833685]
[1749422088233,0.40056879,106080.0,106070.0,0.24933685]
[1749422088428,0.46600852,106080.0,106070.0,0.24933685]
[1749422089700,0.46600852,106080.0,106070.0,0.25033685]
[1749422093512,0.63216361,106080.0,106070.0,0.24090974]
[1749422093709,0.65454547,106080.0,106070.0,0.24090974]
[1749422094256,0.65454547,106080.0,106070.0,0.25033703]
[1749422094459,0.46600852,106080.0,106070.0,0.26919134]
[1749422094661,0.44362666,106080.0,106070.0,0.26919134]
[1749422095206,0.43419982,106080.0,106070.0,0.26919134]
[1749422095409,0.44362648,106080.0,106070.0,0.26919134]
[1749422096661,0.37818675,106080.0,106070.0,0.26919134]
[1749422097332,0.38761359,106080.0,106070.0,0.26919134]
[1749422098247,0.57615054,106080.0,106070.0,0.26919134]
[1749422098450,0.5985324,106080.0,106070.0,0.26919134]
[1749422098665,0.40999545,106080.0,106070.0,0.26919134]
[1749422098864,0.38761359,106080.0,106070.0,0.26919134]
[1749422099275,0.45026294,106080.0,106070.0,0.26919134]
[1749422099686,0.62937385,106080.0,106070.0,0.25976423]
[1749422099830,0.65175571,106080.0,106070.0,0.25976423]
[1749422100221,0.65175571,106080.0,106070.0,0.25033703]
[1749422100642,0.6423294,106080.0,106070.0,0.25033703]
[1749422101943,0.45379236,106080.0,106070.0,0.26919134]
[1749422102148,0.4314105,106080.0,106070.0,0.26919134]
[1749422103067,0.62937429,106080.0,106070.0,0.24090974]
[1749422103278,0.62937429,106080.0,106070.0,0.25033703]
[1749422103279,0.65175615,106080.0,106070.0,0.25033703]
[1749422103906,0.65175615,106080.0,106070.0,0.25976423]
[1749422104320,0.65175615,106080.0,106070.0,0.25033703]
[1749422104538,0.65175615,106080.0,106070.0,0.23148236]
[1749422104737,0.64232957,106080.0,106070.0,0.23148236]
[1749422104943,0.64232957,106080.0,106070.0,0.21648236]
[1749422105165,0.63290291,106080.0,106070.0,0.21648236]
[1749422105515,0.63290291,106080.0,106070.0,0.22590991]
[1749422105743,0.63290291,106080.0,106070.0,0.24240991]
[1749422105945,0.63290291,106080.0,106070.0,0.26126475]
[1749422106350,0.63290291,106080.0,106070.0,0.25183737]
[1749422107235,0.02286302,106080.0,106070.0,0.84774462]
[1749422107449,0.02286302,106080.0,106070.0,0.85717173]
[1749422107450,0.00048116,106080.0,106070.0,0.85717173]
[1749422107865,0.00048116,106080.0,106070.0,0.27069168]
[1749422108086,0.00990729,106080.0,106070.0,0.85717173]
[1749422108325,0.0193336,106080.0,106070.0,0.85717173]
[1749422109010,0.00990729,106080.0,106070.0,0.85717173]
[1749422109414,0.00048116,106080.0,106070.0,0.85717173]
[1749422109617,0.01933351,106080.0,106070.0,0.27069168]
[1749422109819,0.04518466,106080.0,106070.0,0.85717173]
[1749422110424,0.01933351,106080.0,106070.0,0.85717173]
[1749422111639,0.03818657,106080.0,106070.0,0.27069168]
[1749422111883,0.22672423,106080.0,106070.0,0.53901737]
[1749422112100,0.21729792,106080.0,106070.0,0.52016236]
[1749422112265,0.20787152,106080.0,106070.0,0.50366236]
[1749422112468,0.25040674,106080.0,106070.0,0.002]
[1749422112692,0.27228008,106080.0,106070.0,0.002]
[1749422113062,0.30124495,106080.0,106070.0,0.002]
[1749422113262,0.29466194,106080.0,106070.0,0.002]
[1749422113462,0.64124493,106080.0,106070.0,0.002]
[1749422113675,0.66922226,106080.0,106070.0,0.002]
[1749422114076,0.76562174,106080.0,106070.0,0.002]
[1749422114304,0.76562159,106080.0,106070.0,0.002]
[1749422114736,0.76562156,106080.0,106070.0,0.002]
[1749422115084,0.76562145,106080.0,106070.0,0.002]
[1749422115289,0.76562146,106080.0,106070.0,0.002]
[1749422115673,1.06930146,106080.0,106070.0,0.002]
[1749422116083,1.15987875,106080.0,106070.0,0.002]
[1749422116290,1.20379019,106080.0,106070.0,0.002]
[1749422116471,1.17581265,106080.0,106070.0,0.002]
[1749422116700,1.23181022,106080.0,106070.0,0.002]
[1749422116907,1.19447935,106080.0,106070.0,0.002]
[1749422117309,1.23190015,106080.0,106070.0,0.002]
[1749422117552,1.22531979,106080.0,106070.0,0.002]
[1749422117870,1.23189963,106080.0,106070.0,0.002]
[1749422118389,1.22531979,106080.0,106070.0,0.002]
[1749422118664,1.23189963,106080.0,106070.0,0.002]
[1749422119451,1.22531979,106080.0,106070.0,0.002]
[1749422119667,1.23189249,106080.0,106070.0,0.002]
[1749422120542,1.17589492,106080.0,106070.0,0.002]
[1749422120873,1.17589385,106080.0,106070.0,0.002]
[1749422121368,1.17589384,106080.0,106070.0,0.002]
[1749422122997,1.16932222,106080.0,106070.0,0.002]
[1749422123363,1.17589244,106080.0,106070.0,0.002]
[1749422123567,1.16932222,106080.0,106070.0,0.002]
[1749422123958,1.17589244,106080.0,106070.0,0.002]
[1749422124088,1.17589036,106080.0,106070.0,0.002]
[1749422124303,1.20392022,106080.0,106070.0,0.002]
[1749422124515,1.19735208,106080.0,106070.0,0.002]
[1749422124724,1.20392022,106080.0,106070.0,0.002]
[1749422124966,1.20392023,106080.0,106070.0,0.002]
[1749422125324,1.19735208,106080.0,106070.0,0.002]
[1749422125538,1.20392022,106080.0,106070.0,0.002]
[1749422126580,1.20391898,106080.0,106070.0,0.002]
[1749422127420,1.20391902,106080.0,106070.0,0.002]
[1749422127587,1.23224602,106080.0,106070.0,0.002]
[1749422127766,1.22567908,106080.0,106070.0,0.002]
[1749422127972,1.23224602,106080.0,106070.0,0.002]
[1749422128176,1.22567908,106080.0,106070.0,0.002]
[1749422128375,1.232246,106080.0,106070.0,0.002]
[1749422128862,1.23224602,106080.0,106070.0,0.002]
[1749422129592,1.22567908,106080.0,106070.0,0.002]
[1749422129800,1.23224654,106080.0,106070.0,0.002]
[1749422130003,1.23224621,106080.0,106070.0,0.002]
[1749422130376,1.2322462,106080.0,106070.0,0.002]
[1749422130589,1.22567908,106080.0,106070.0,0.002]
[1749422131139,1.23224621,106080.0,106070.0,0.002]
[1749422131995,1.22567908,106080.0,106070.0,0.002]
[1749422132409,1.23224621,106080.0,106070.0,0.002]
[1749422133610,1.13508781,106080.0,106070.0,0.002]
[1749422133826,0.85980701,106080.0,106070.0,0.0347]
[1749422134026,0.81727195,106080.0,106070.0,0.0347]
[1749422134232,0.81070306,106080.0,106070.0,0.0347]
[1749422134435,0.817272,106080.0,106070.0,0.0347]
[1749422135772,0.81727199,106080.0,106070.0,0.0347]
[1749422136088,0.91367289,106080.0,106070.0,0.0183]
[1749422136879,0.90710254,106080.0,106070.0,0.002]
[1749422137057,0.91367289,106080.0,106070.0,0.002]
[1749422137270,0.90710254,106080.0,106070.0,0.002]
[1749422138219,0.91367289,106080.0,106070.0,0.002]
[1749422138448,0.94452334,106080.0,106070.0,0.002]
[1749422138669,0.95109363,106080.0,106070.0,0.002]
[1749422138872,0.94452334,106080.0,106070.0,0.002]
[1749422139248,0.95109361,106080.0,106070.0,0.002]
[1749422139655,0.95109362,106080.0,106070.0,0.002]
[1749422139859,0.97562334,106080.0,106070.0,0.002]
[1749422140072,0.95417257,106080.0,106070.0,0.002]
[1749422140286,1.01017014,106080.0,106070.0,0.002]
[1749422140478,1.01017011,106080.0,106070.0,0.002]
[1749422141024,1.00359105,106080.0,106070.0,0.002]
[1749422141147,1.00359105,106080.0,106070.0,0.001]
[1749422141358,1.01017011,106080.0,106070.0,0.001]
[1749422141559,0.20742912,106060.0,106050.0,0.0313]
[1749422141778,0.23949543,106060.0,106050.0,0.0313]
[1749422142643,0.23949543,106060.0,106050.0,0.0343]
[1749422143076,0.23949543,106060.0,106050.0,0.0373]
[1749422143282,0.26187729,106060.0,106050.0,0.0373]
[1749422143482,0.26195566,106060.0,106050.0,0.0373]
[1749422153541,0.69835514,106060.0,106050.0,0.006]
[1749422153748,0.73301329,106060.0,106050.0,0.006]
[1749422153949,0.77043409,106060.0,106050.0,0.006]
[1749422154141,0.86743367,106060.0,106050.0,0.006]
[1749422154374,0.86743376,106060.0,106050.0,0.006]
[1749422154591,0.86085123,106060.0,106050.0,0.006]
[1749422154822,0.86743375,106060.0,106050.0,0.006]
[1749422154995,0.86085123,106060.0,106050.0,0.006]
[1749422155865,0.86743375,106060.0,106050.0,0.006]
[1749422156100,0.86085123,106060.0,106050.0,0.006]
[1749422157442,0.8674332,106060.0,106050.0,0.003]
[1749422157782,0.19801961,106050.0,106040.0,0.0416]
[1749422158158,0.4132788,106050.0,106040.0,0.0416]
[1749422159158,0.4132788,106050.0,106040.0,0.0446]
[1749422159308,0.4132788,106050.0,106040.0,0.0476]
[1749422159837,0.4132788,106050.0,106040.0,0.016]
[1749422160040,0.41985948,106050.0,106040.0,0.016]
[1749422160403,0.45756535,106050.0,106040.0,0.016]
[1749422160578,0.45098469,106050.0,106040.0,0.016]
[1749422160876,0.4575653,106050.0,106040.0,0.016]
[1749422161084,1.1316053,106050.0,106040.0,0.016]
[1749422161305,1.1690261,106050.0,106040.0,0.016]
[1749422161510,1.1690257,106050.0,106040.0,0.016]
[1749422161716,1.16902566,106050.0,106040.0,0.016]
[1749422162197,1.16244549,106050.0,106040.0,0.016]
[1749422162400,1.16902566,106050.0,106040.0,0.013]
[1749422162617,1.13160485,106050.0,106040.0,0.014]
[1749422163027,1.13160252,106050.0,106040.0,0.014]
[1749422163258,1.12502469,106050.0,106040.0,0.014]
[1749422163460,1.13160252,106050.0,106040.0,0.014]
[1749422163654,1.13160252,106050.0,106040.0,0.011]